[Event "Titled Tuesday Blitz February 22 Early 2022"]
[White "Kozin, Yuri"]
[Black "Quirke, Jeffrey"]
[WhiteFideId "4129920"]
[BlackFideId "2013029"]
[WhiteElo "2562"]
[BlackElo "2214"]
[Result "1-0"]
[Round "04"]
[TimeControl "180+1"]
[Date "2022.02.22"]
[WhiteClock "0:00:44"]
[BlackClock "0:00:02"]

1. e4 {[%clk 0:03:00]}  c5 {[%clk 0:02:59]} 2. Nf3 {[%clk 0:03:00]}  e6 {[%clk 0:02:59]} 3. d4 {[%clk 0:03:01]}  cxd4 {[%clk 0:03:00]} 4. Nxd4 {[%clk 0:03:01]}  a6 {[%clk 0:03:01]} 5. Bd3 {[%clk 0:03:02]}  Bc5 {[%clk 0:03:00]} 6. Nb3 {[%clk 0:03:02]}  Ba7 {[%clk 0:03:00]} 7. Nc3 {[%clk 0:03:02]}  Nc6 {[%clk 0:02:59]} 8. Qe2 {[%clk 0:03:01]}  d6 {[%clk 0:02:51]} 9. Be3 {[%clk 0:03:01]}  Nf6 {[%clk 0:02:50]} 10. O-O-O {[%clk 0:02:59]}  b5 {[%clk 0:02:46]} 11. Bxa7 {[%clk 0:02:34]}  Rxa7 {[%clk 0:02:45]} 12. Qe3 {[%clk 0:02:32]}  Rd7 {[%clk 0:02:36]} 13. f4 {[%clk 0:02:29]}  Qc7 {[%clk 0:02:27]} 14. g4 {[%clk 0:02:27]}  Nb4 {[%clk 0:01:54]} 15. g5 {[%clk 0:02:22]}  Nxd3+ {[%clk 0:01:45]} 16. Rxd3 {[%clk 0:02:16]}  Nh5 {[%clk 0:01:28]} 17. f5 {[%clk 0:02:16]}  g6 {[%clk 0:01:18]} 18. Nd4 {[%clk 0:01:50]}  Rd8 {[%clk 0:01:00]} 19. Nce2 {[%clk 0:01:29]}  O-O {[%clk 0:00:58]} 20. f6 {[%clk 0:01:24]}  e5 {[%clk 0:00:37]} 21. Nb3 {[%clk 0:01:19]}  Be6 {[%clk 0:00:27]} 22. Rhd1 {[%clk 0:01:16]}  Rc8 {[%clk 0:00:20]} 23. Rc3 {[%clk 0:01:11]}  Qb8 {[%clk 0:00:14]} 24. Ng3 {[%clk 0:01:06]}  Nf4 {[%clk 0:00:13]} 25. Ne2 {[%clk 0:01:03]}  Nxe2+ {[%clk 0:00:12]} 26. Qxe2 {[%clk 0:01:01]}  Rxc3 {[%clk 0:00:13]} 27. bxc3 {[%clk 0:01:02]}  Rc8 {[%clk 0:00:12]} 28. Qe3 {[%clk 0:00:58]}  Qc7 {[%clk 0:00:12]} 29. Kb2 {[%clk 0:00:58]}  a5 {[%clk 0:00:11]} 30. Rd3 {[%clk 0:00:54]}  b4 {[%clk 0:00:10]} 31. Qd2 {[%clk 0:00:51]}  a4 {[%clk 0:00:08]} 32. Nc1 {[%clk 0:00:46]}  a3+ {[%clk 0:00:08]} 33. Ka1 {[%clk 0:00:46]}  bxc3 {[%clk 0:00:09]} 34. Qe3 {[%clk 0:00:46]}  Qb7 {[%clk 0:00:05]} 35. Nb3 {[%clk 0:00:46]}  Bxb3 {[%clk 0:00:04]} 36. axb3 {[%clk 0:00:45]}  Qc7 {[%clk 0:00:02]} 37. Qh3 {[%clk 0:00:44]}  h5 {[%clk 0:00:02]} 38. gxh6 {[%clk 0:00:44]}  Kh7 {[%clk 0:00:02]} 39. Ka2 {[%clk 0:00:44]} 1-0


[Site "https://www.chess.com"]

[Event "Titled Tuesday Blitz February 22 Early 2022"]
[White "Krutko, Anatoly"]
[Black "Qashashvili, Alexandre"]
[WhiteFideId "4185862"]
[BlackFideId "13600842"]
[WhiteElo "2378"]
[BlackElo "2316"]
[Result "0-1"]
[Round "04"]
[TimeControl "180+1"]
[Date "2022.02.22"]
[WhiteClock "0:00:22"]
[BlackClock "0:00:14"]

1. d4 {[%clk 0:03:00]}  d5 {[%clk 0:03:00]} 2. c4 {[%clk 0:02:59]}  c6 {[%clk 0:03:00]} 3. Nf3 {[%clk 0:02:59]}  Nf6 {[%clk 0:02:59]} 4. e3 {[%clk 0:02:59]}  Bf5 {[%clk 0:02:58]} 5. Nc3 {[%clk 0:02:59]}  e6 {[%clk 0:02:58]} 6. Qb3 {[%clk 0:02:58]}  b6 {[%clk 0:02:58]} 7. cxd5 {[%clk 0:02:52]}  exd5 {[%clk 0:02:58]} 8. Ne5 {[%clk 0:02:52]}  Bd6 {[%clk 0:02:58]} 9. f4 {[%clk 0:02:51]}  O-O {[%clk 0:02:56]} 10. Be2 {[%clk 0:02:48]}  Ne4 {[%clk 0:02:56]} 11. O-O {[%clk 0:02:45]}  h6 {[%clk 0:02:52]} 12. Bf3 {[%clk 0:02:05]}  Qc7 {[%clk 0:02:50]} 13. Bxe4 {[%clk 0:01:58]}  Bxe4 {[%clk 0:02:47]} 14. Nxe4 {[%clk 0:01:58]}  dxe4 {[%clk 0:02:48]} 15. Bd2 {[%clk 0:01:55]}  Nd7 {[%clk 0:02:47]} 16. Rac1 {[%clk 0:01:47]}  c5 {[%clk 0:02:28]} 17. Bc3 {[%clk 0:01:18]}  Rac8 {[%clk 0:01:57]} 18. g4 {[%clk 0:00:48]}  cxd4 {[%clk 0:01:41]} 19. Bxd4 {[%clk 0:00:49]}  Qxc1 {[%clk 0:01:41]} 20. Rxc1 {[%clk 0:00:49]}  Rxc1+ {[%clk 0:01:42]} 21. Kg2 {[%clk 0:00:50]}  Bxe5 {[%clk 0:01:39]} 22. fxe5 {[%clk 0:00:50]}  Nc5 {[%clk 0:01:36]} 23. Qd5 {[%clk 0:00:48]}  Rc2+ {[%clk 0:01:29]} 24. Kg3 {[%clk 0:00:47]}  Ne6 {[%clk 0:01:08]} 25. Qxe4 {[%clk 0:00:46]}  Nxd4 {[%clk 0:01:08]} 26. exd4 {[%clk 0:00:47]}  Rxb2 {[%clk 0:01:07]} 27. e6 {[%clk 0:00:47]}  fxe6 {[%clk 0:01:07]} 28. Qxe6+ {[%clk 0:00:48]}  Kh8 {[%clk 0:01:07]} 29. h4 {[%clk 0:00:47]}  Rd2 {[%clk 0:01:03]} 30. Qe5 {[%clk 0:00:45]}  Rd8 {[%clk 0:00:57]} 31. g5 {[%clk 0:00:42]}  Rd3+ {[%clk 0:00:57]} 32. Kg2 {[%clk 0:00:41]}  hxg5 {[%clk 0:00:55]} 33. hxg5 {[%clk 0:00:39]}  Rd2+ {[%clk 0:00:54]} 34. Kg3 {[%clk 0:00:39]}  Rd3+ {[%clk 0:00:54]} 35. Kg2 {[%clk 0:00:39]}  R3xd4 {[%clk 0:00:55]} 36. Qh2+ {[%clk 0:00:29]}  Kg8 {[%clk 0:00:53]} 37. Qe5 {[%clk 0:00:30]}  Rd2+ {[%clk 0:00:45]} 38. Kg3 {[%clk 0:00:30]}  R2d3+ {[%clk 0:00:39]} 39. Kg4 {[%clk 0:00:31]}  R3d4+ {[%clk 0:00:20]} 40. Kh5 {[%clk 0:00:30]}  R4d6 {[%clk 0:00:20]} 41. Qb5 {[%clk 0:00:22]}  R8d7 {[%clk 0:00:17]} 42. Qb3+ {[%clk 0:00:22]}  Kh7 {[%clk 0:00:15]} 43. Qc2+ {[%clk 0:00:22]}  g6+ {[%clk 0:00:14]} 44. Kh4 {[%clk 0:00:22]}  Rd4+ {[%clk 0:00:14]} 45. Kh3 {[%clk 0:00:22]}  Rd3+ {[%clk 0:00:14]} 0-1


[Site "https://www.chess.com"]

[Event "Titled Tuesday Blitz February 22 Early 2022"]
[White "Langner, Ladislav"]
[Black "Samarth, J Rao"]
[WhiteFideId "300403"]
[BlackFideId "46652370"]
[WhiteElo "2346"]
[BlackElo "1514"]
[Result "1-0"]
[Round "04"]
[TimeControl "180+1"]
[Date "2022.02.22"]
[WhiteClock "0:00:25"]
[BlackClock "0:00:03"]

1. e4 {[%clk 0:03:00]}  c5 {[%clk 0:02:59]} 2. c3 {[%clk 0:03:00]}  Nf6 {[%clk 0:02:57]} 3. e5 {[%clk 0:03:00]}  Nd5 {[%clk 0:02:55]} 4. Bc4 {[%clk 0:03:01]}  Nb6 {[%clk 0:02:53]} 5. Bb3 {[%clk 0:03:02]}  d5 {[%clk 0:02:50]} 6. exd6 {[%clk 0:03:01]}  exd6 {[%clk 0:02:51]} 7. d4 {[%clk 0:02:57]}  d5 {[%clk 0:02:48]} 8. Nf3 {[%clk 0:02:53]}  Be7 {[%clk 0:02:39]} 9. dxc5 {[%clk 0:02:49]}  Bxc5 {[%clk 0:02:39]} 10. O-O {[%clk 0:02:46]}  O-O {[%clk 0:02:39]} 11. h3 {[%clk 0:02:45]}  h6 {[%clk 0:02:37]} 12. Bf4 {[%clk 0:02:42]}  Nc6 {[%clk 0:02:37]} 13. Re1 {[%clk 0:02:35]}  Bf5 {[%clk 0:02:34]} 14. Nbd2 {[%clk 0:02:24]}  a5 {[%clk 0:02:31]} 15. Be3 {[%clk 0:02:07]}  d4 {[%clk 0:02:00]} 16. cxd4 {[%clk 0:02:04]}  Nxd4 {[%clk 0:02:01]} 17. Nxd4 {[%clk 0:01:38]}  Bxd4 {[%clk 0:02:02]} 18. Bxd4 {[%clk 0:01:38]}  Qxd4 {[%clk 0:01:59]} 19. Nc4 {[%clk 0:01:38]}  Qxd1 {[%clk 0:01:53]} 20. Raxd1 {[%clk 0:01:37]}  Nxc4 {[%clk 0:01:53]} 21. Bxc4 {[%clk 0:01:38]}  Rac8 {[%clk 0:01:52]} 22. b3 {[%clk 0:01:35]}  a4 {[%clk 0:01:51]} 23. Re7 {[%clk 0:01:33]}  b5 {[%clk 0:01:37]} 24. Bxb5 {[%clk 0:01:31]}  axb3 {[%clk 0:01:37]} 25. axb3 {[%clk 0:01:31]}  Bc2 {[%clk 0:01:38]} 26. Rc1 {[%clk 0:01:13]}  Bxb3 {[%clk 0:01:34]} 27. Rec7 {[%clk 0:01:12]}  Rxc7 {[%clk 0:01:31]} 28. Rxc7 {[%clk 0:01:11]}  Rb8 {[%clk 0:01:32]} 29. Bd3 {[%clk 0:01:10]}  Kf8 {[%clk 0:01:28]} 30. g4 {[%clk 0:01:09]}  Bd5 {[%clk 0:01:27]} 31. Kh2 {[%clk 0:01:07]}  Rb3 {[%clk 0:01:26]} 32. Bc2 {[%clk 0:01:04]}  Rf3 {[%clk 0:01:25]} 33. Rc5 {[%clk 0:00:42]}  Rxf2+ {[%clk 0:01:22]} 34. Kg1 {[%clk 0:00:38]}  Rg2+ {[%clk 0:01:18]} 35. Kf1 {[%clk 0:00:38]}  Rd2 {[%clk 0:00:43]} 36. Ke1 {[%clk 0:00:37]}  Rd4 {[%clk 0:00:21]} 37. Kf2 {[%clk 0:00:33]}  Ke7 {[%clk 0:00:02]} 38. Ke3 {[%clk 0:00:32]}  Rc4 {[%clk 0:00:03]} 39. Rxd5 {[%clk 0:00:31]}  Rxc2 {[%clk 0:00:03]} 40. Rd3 {[%clk 0:00:30]}  Rh2 {[%clk 0:00:02]} 41. Kf4 {[%clk 0:00:30]}  Kf6 {[%clk 0:00:03]} 42. Rd6+ {[%clk 0:00:30]}  Ke7 {[%clk 0:00:03]} 43. Rd3 {[%clk 0:00:30]}  Ke6 {[%clk 0:00:04]} 44. Kg3 {[%clk 0:00:30]}  Re2 {[%clk 0:00:04]} 45. Ra3 {[%clk 0:00:30]}  Re5 {[%clk 0:00:03]} 46. Ra6+ {[%clk 0:00:28]}  Ke7 {[%clk 0:00:04]} 47. Kf4 {[%clk 0:00:27]}  Re6 {[%clk 0:00:05]} 48. Ra7+ {[%clk 0:00:26]}  Kf6 {[%clk 0:00:06]} 49. Ra5 {[%clk 0:00:26]}  Rb6 {[%clk 0:00:05]} 50. Ra3 {[%clk 0:00:25]}  Rb4+ {[%clk 0:00:05]} 51. Kg3 {[%clk 0:00:25]}  Kg6 {[%clk 0:00:05]} 52. Ra6+ {[%clk 0:00:25]}  f6 {[%clk 0:00:05]} 53. Ra3 {[%clk 0:00:26]}  Kg5 {[%clk 0:00:04]} 54. Ra5+ {[%clk 0:00:25]}  Kg6 {[%clk 0:00:04]} 55. Ra3 {[%clk 0:00:26]}  Kf7 {[%clk 0:00:04]} 56. Ra7+ {[%clk 0:00:25]}  Kf8 {[%clk 0:00:04]} 57. Ra3 {[%clk 0:00:26]}  Kf7 {[%clk 0:00:03]} 58. Ra7+ {[%clk 0:00:26]}  Kg8 {[%clk 0:00:04]} 59. Rc7 {[%clk 0:00:26]}  Rd4 {[%clk 0:00:03]} 60. Kh4 {[%clk 0:00:26]}  Kh7 {[%clk 0:00:03]} 61. Kg3 {[%clk 0:00:25]}  Kg6 {[%clk 0:00:03]} 62. Rc5 {[%clk 0:00:25]} 1-0


[Site "https://www.chess.com"]

[Event "Titled Tuesday Blitz February 22 Early 2022"]
[White "Liyanage, Ranindu Dilshan"]
[Black "Sahil, Tickoo"]
[WhiteFideId "9915834"]
[BlackFideId "5019710"]
[WhiteElo "1858"]
[BlackElo "2099"]
[Result "1/2-1/2"]
[Round "04"]
[TimeControl "180+1"]
[Date "2022.02.22"]
[WhiteClock "0:00:13"]
[BlackClock "0:00:14"]

1. d4 {[%clk 0:03:00]}  d5 {[%clk 0:03:00]} 2. c4 {[%clk 0:03:00]}  e6 {[%clk 0:03:00]} 3. Nf3 {[%clk 0:03:00]}  c6 {[%clk 0:02:59]} 4. Nc3 {[%clk 0:02:59]}  Nf6 {[%clk 0:02:57]} 5. e3 {[%clk 0:02:59]}  Nbd7 {[%clk 0:02:54]} 6. Qc2 {[%clk 0:02:58]}  Bd6 {[%clk 0:02:50]} 7. Bd3 {[%clk 0:02:58]}  dxc4 {[%clk 0:02:43]} 8. Bxc4 {[%clk 0:02:58]}  b5 {[%clk 0:02:43]} 9. Bd3 {[%clk 0:02:56]}  O-O {[%clk 0:02:40]} 10. O-O {[%clk 0:02:52]}  Bb7 {[%clk 0:02:35]} 11. Rd1 {[%clk 0:02:46]}  Rc8 {[%clk 0:02:21]} 12. e4 {[%clk 0:02:40]}  e5 {[%clk 0:01:50]} 13. h3 {[%clk 0:02:25]}  Qe7 {[%clk 0:01:37]} 14. Bg5 {[%clk 0:02:16]}  a6 {[%clk 0:01:27]} 15. Ne2 {[%clk 0:02:13]}  h6 {[%clk 0:01:22]} 16. Bxf6 {[%clk 0:01:54]}  Qxf6 {[%clk 0:01:18]} 17. a4 {[%clk 0:01:34]}  Rfd8 {[%clk 0:01:08]} 18. Qb3 {[%clk 0:01:14]}  exd4 {[%clk 0:01:02]} 19. Nexd4 {[%clk 0:00:29]}  Ne5 {[%clk 0:00:45]} 20. Nf5 {[%clk 0:00:17]}  Nxf3+ {[%clk 0:00:42]} 21. gxf3 {[%clk 0:00:18]}  Bf4 {[%clk 0:00:37]} 22. Bf1 {[%clk 0:00:16]}  g6 {[%clk 0:00:33]} 23. Ne3 {[%clk 0:00:16]}  Qg5+ {[%clk 0:00:30]} 24. Bg2 {[%clk 0:00:16]}  Be5 {[%clk 0:00:22]} 25. axb5 {[%clk 0:00:15]}  cxb5 {[%clk 0:00:17]} 26. Nd5 {[%clk 0:00:15]}  Bxd5 {[%clk 0:00:16]} 27. Rxd5 {[%clk 0:00:15]}  Rxd5 {[%clk 0:00:15]} 28. Qxd5 {[%clk 0:00:15]}  Rc1+ {[%clk 0:00:14]} 29. Rxc1 {[%clk 0:00:15]}  Qxc1+ {[%clk 0:00:14]} 30. Bf1 {[%clk 0:00:16]}  Qf4 {[%clk 0:00:14]} 31. Bg2 {[%clk 0:00:14]}  Qc1+ {[%clk 0:00:14]} 32. Bf1 {[%clk 0:00:14]}  Qf4 {[%clk 0:00:14]} 33. Bg2 {[%clk 0:00:13]}  Qc1+ {[%clk 0:00:14]} 1/2-1/2


[Site "https://www.chess.com"]

[Event "Titled Tuesday Blitz February 22 Early 2022"]
[White "Lodici, Lorenzo"]
[Black "Deac, Bogdan-Daniel"]
[WhiteFideId "884189"]
[BlackFideId "1226380"]
[WhiteElo "2265"]
[BlackElo "2646"]
[Result "1/2-1/2"]
[Round "04"]
[TimeControl "180+1"]
[Date "2022.02.22"]
[WhiteClock "0:00:25"]
[BlackClock "0:00:03"]

1. e4 {[%clk 0:03:00]}  e5 {[%clk 0:02:59]} 2. Nf3 {[%clk 0:03:01]}  Nf6 {[%clk 0:03:00]} 3. Nc3 {[%clk 0:02:59]}  Nc6 {[%clk 0:02:59]} 4. Bb5 {[%clk 0:02:59]}  Bb4 {[%clk 0:02:55]} 5. O-O {[%clk 0:02:58]}  O-O {[%clk 0:02:55]} 6. Bxc6 {[%clk 0:02:51]}  dxc6 {[%clk 0:02:54]} 7. Nxe5 {[%clk 0:02:51]}  Bxc3 {[%clk 0:02:51]} 8. dxc3 {[%clk 0:02:51]}  Nxe4 {[%clk 0:02:51]} 9. Qf3 {[%clk 0:02:47]}  Nd6 {[%clk 0:02:46]} 10. Bf4 {[%clk 0:02:39]}  Re8 {[%clk 0:02:41]} 11. Rad1 {[%clk 0:02:35]}  Qf6 {[%clk 0:02:41]} 12. Nd3 {[%clk 0:02:10]}  Bf5 {[%clk 0:02:29]} 13. Rfe1 {[%clk 0:02:08]}  h6 {[%clk 0:02:15]} 14. h3 {[%clk 0:02:07]}  Bg6 {[%clk 0:02:09]} 15. Rxe8+ {[%clk 0:01:56]}  Rxe8 {[%clk 0:02:08]} 16. Re1 {[%clk 0:01:56]}  Rxe1+ {[%clk 0:02:03]} 17. Nxe1 {[%clk 0:01:57]}  Qe6 {[%clk 0:02:04]} 18. Qe3 {[%clk 0:01:52]}  Qxa2 {[%clk 0:02:00]} 19. Qe7 {[%clk 0:01:51]}  Qxb2 {[%clk 0:01:54]} 20. Qxc7 {[%clk 0:01:49]}  Ne4 {[%clk 0:01:19]} 21. Qb8+ {[%clk 0:01:49]}  Kh7 {[%clk 0:01:18]} 22. Qxa7 {[%clk 0:01:49]}  Qxc3 {[%clk 0:01:16]} 23. Qe3 {[%clk 0:01:49]}  b5 {[%clk 0:01:05]} 24. f3 {[%clk 0:01:44]}  Qxe3+ {[%clk 0:01:02]} 25. Bxe3 {[%clk 0:01:45]}  Nc3 {[%clk 0:01:02]} 26. Bd2 {[%clk 0:01:45]}  Nd5 {[%clk 0:00:59]} 27. Kf2 {[%clk 0:01:44]}  c5 {[%clk 0:00:52]} 28. g4 {[%clk 0:01:44]}  b4 {[%clk 0:00:47]} 29. Ke2 {[%clk 0:01:43]}  c4 {[%clk 0:00:47]} 30. Kd1 {[%clk 0:01:38]}  f6 {[%clk 0:00:37]} 31. Ng2 {[%clk 0:01:34]}  c3 {[%clk 0:00:20]} 32. Bc1 {[%clk 0:01:28]}  Bf7 {[%clk 0:00:20]} 33. Nf4 {[%clk 0:01:23]}  Nb6 {[%clk 0:00:20]} 34. Be3 {[%clk 0:01:21]}  Na4 {[%clk 0:00:12]} 35. Nd3 {[%clk 0:00:47]}  b3 {[%clk 0:00:12]} 36. cxb3 {[%clk 0:00:45]}  Bxb3+ {[%clk 0:00:12]} 37. Kc1 {[%clk 0:00:44]}  Bd5 {[%clk 0:00:13]} 38. Ne1 {[%clk 0:00:43]}  g5 {[%clk 0:00:07]} 39. Kc2 {[%clk 0:00:42]}  Kg6 {[%clk 0:00:06]} 40. Kd3 {[%clk 0:00:41]}  f5 {[%clk 0:00:06]} 41. Kd4 {[%clk 0:00:41]}  Bc6 {[%clk 0:00:05]} 42. Kc4 {[%clk 0:00:39]}  f4 {[%clk 0:00:05]} 43. Bf2 {[%clk 0:00:35]}  c2 {[%clk 0:00:05]} 44. Nxc2 {[%clk 0:00:35]}  Bxf3 {[%clk 0:00:05]} 45. Ne1 {[%clk 0:00:35]}  Be4 {[%clk 0:00:04]} 46. Bd4 {[%clk 0:00:34]}  h5 {[%clk 0:00:03]} 47. Kb4 {[%clk 0:00:34]}  hxg4 {[%clk 0:00:03]} 48. hxg4 {[%clk 0:00:35]}  Bc6 {[%clk 0:00:03]} 49. Nd3 {[%clk 0:00:33]}  Be8 {[%clk 0:00:04]} 50. Nf2 {[%clk 0:00:29]}  Bd7 {[%clk 0:00:04]} 51. Kc4 {[%clk 0:00:27]}  Be6+ {[%clk 0:00:03]} 52. Kb4 {[%clk 0:00:27]}  Bd7 {[%clk 0:00:03]} 53. Kc4 {[%clk 0:00:27]}  Kf7 {[%clk 0:00:03]} 54. Ne4 {[%clk 0:00:26]}  Kg6 {[%clk 0:00:03]} 55. Nf2 {[%clk 0:00:25]} 1/2-1/2


[Site "https://www.chess.com"]

[Event "Titled Tuesday Blitz February 22 Early 2022"]
[White "Lopez Mulet, Inigo"]
[Black "Kobo, Ori"]
[WhiteFideId "22235620"]
[BlackFideId "2812320"]
[WhiteElo "2526"]
[BlackElo "2758"]
[Result "0-1"]
[Round "04"]
[TimeControl "180+1"]
[Date "2022.02.22"]
[WhiteClock "0:00:24"]
[BlackClock "0:00:18"]

1. b3 {[%clk 0:03:00]}  e5 {[%clk 0:02:59]} 2. Bb2 {[%clk 0:03:01]}  Nc6 {[%clk 0:03:00]} 3. e3 {[%clk 0:03:01]}  d5 {[%clk 0:03:00]} 4. d4 {[%clk 0:02:58]}  exd4 {[%clk 0:02:56]} 5. exd4 {[%clk 0:02:59]}  Bd6 {[%clk 0:02:55]} 6. Nf3 {[%clk 0:03:00]}  Nge7 {[%clk 0:02:55]} 7. Bd3 {[%clk 0:03:00]}  Bg4 {[%clk 0:02:54]} 8. h3 {[%clk 0:03:00]}  Bh5 {[%clk 0:02:54]} 9. O-O {[%clk 0:03:00]}  f6 {[%clk 0:02:46]} 10. c4 {[%clk 0:02:52]}  O-O {[%clk 0:02:30]} 11. Nbd2 {[%clk 0:02:32]}  Qd7 {[%clk 0:02:28]} 12. a3 {[%clk 0:02:23]}  Bf4 {[%clk 0:02:17]} 13. Qc2 {[%clk 0:02:19]}  Bg6 {[%clk 0:02:14]} 14. Bxg6 {[%clk 0:02:15]}  Nxg6 {[%clk 0:02:15]} 15. Rfe1 {[%clk 0:02:11]}  Rfe8 {[%clk 0:02:13]} 16. cxd5 {[%clk 0:02:03]}  Qxd5 {[%clk 0:02:12]} 17. Qc4 {[%clk 0:02:04]}  Nge7 {[%clk 0:01:50]} 18. Ne4 {[%clk 0:01:50]}  Bd6 {[%clk 0:01:26]} 19. Re2 {[%clk 0:01:36]}  Na5 {[%clk 0:01:21]} 20. Qa4 {[%clk 0:00:45]}  Nec6 {[%clk 0:01:05]} 21. Rae1 {[%clk 0:00:36]}  Rxe4 {[%clk 0:00:56]} 22. b4 {[%clk 0:00:17]}  Rxe2 {[%clk 0:00:52]} 23. Rxe2 {[%clk 0:00:18]}  b5 {[%clk 0:00:45]} 24. Qd1 {[%clk 0:00:18]}  Nc4 {[%clk 0:00:45]} 25. Bc1 {[%clk 0:00:19]}  Ne7 {[%clk 0:00:38]} 26. Qd3 {[%clk 0:00:19]}  Ng6 {[%clk 0:00:36]} 27. g3 {[%clk 0:00:19]}  Kf7 {[%clk 0:00:36]} 28. h4 {[%clk 0:00:18]}  Re8 {[%clk 0:00:35]} 29. Rxe8 {[%clk 0:00:18]}  Kxe8 {[%clk 0:00:36]} 30. h5 {[%clk 0:00:18]}  Ne7 {[%clk 0:00:35]} 31. h6 {[%clk 0:00:18]}  g6 {[%clk 0:00:32]} 32. Kg2 {[%clk 0:00:18]}  Kf7 {[%clk 0:00:29]} 33. Kg1 {[%clk 0:00:19]}  Nf5 {[%clk 0:00:27]} 34. Qc3 {[%clk 0:00:14]}  c6 {[%clk 0:00:27]} 35. Qd3 {[%clk 0:00:15]}  a6 {[%clk 0:00:26]} 36. Kf1 {[%clk 0:00:14]}  Be7 {[%clk 0:00:23]} 37. g4 {[%clk 0:00:13]}  Nfd6 {[%clk 0:00:23]} 38. Bf4 {[%clk 0:00:14]}  Qe4 {[%clk 0:00:23]} 39. Qxe4 {[%clk 0:00:13]}  Nxe4 {[%clk 0:00:23]} 40. Ke2 {[%clk 0:00:14]}  Nc3+ {[%clk 0:00:23]} 41. Kd3 {[%clk 0:00:14]}  Nd5 {[%clk 0:00:23]} 42. Bc1 {[%clk 0:00:15]}  Bd6 {[%clk 0:00:23]} 43. Ne1 {[%clk 0:00:15]}  Bf4 {[%clk 0:00:23]} 44. Bxf4 {[%clk 0:00:15]}  Nxf4+ {[%clk 0:00:23]} 45. Ke4 {[%clk 0:00:16]}  Nd5 {[%clk 0:00:23]} 46. Nc2 {[%clk 0:00:17]}  Ke6 {[%clk 0:00:22]} 47. f4 {[%clk 0:00:17]}  f5+ {[%clk 0:00:22]} 48. gxf5+ {[%clk 0:00:18]}  gxf5+ {[%clk 0:00:23]} 49. Kf3 {[%clk 0:00:19]}  Nd2+ {[%clk 0:00:22]} 50. Kg3 {[%clk 0:00:20]}  Ne4+ {[%clk 0:00:23]} 51. Kf3 {[%clk 0:00:20]}  Kf6 {[%clk 0:00:21]} 52. Ne1 {[%clk 0:00:21]}  Kg6 {[%clk 0:00:20]} 53. Nd3 {[%clk 0:00:21]}  Kxh6 {[%clk 0:00:20]} 54. Ne5 {[%clk 0:00:21]}  Ne7 {[%clk 0:00:19]} 55. Nf7+ {[%clk 0:00:22]}  Kg7 {[%clk 0:00:19]} 56. Ne5 {[%clk 0:00:21]}  Kf6 {[%clk 0:00:19]} 57. Nd7+ {[%clk 0:00:22]}  Ke6 {[%clk 0:00:20]} 58. Nb8 {[%clk 0:00:22]}  Kd6 {[%clk 0:00:19]} 59. Nxa6 {[%clk 0:00:23]}  h5 {[%clk 0:00:20]} 60. Nc5 {[%clk 0:00:22]}  Nxc5 {[%clk 0:00:20]} 61. dxc5+ {[%clk 0:00:21]}  Kd5 {[%clk 0:00:20]} 62. Kg3 {[%clk 0:00:22]}  Ng6 {[%clk 0:00:19]} 63. Kf3 {[%clk 0:00:22]}  h4 {[%clk 0:00:18]} 64. Kg2 {[%clk 0:00:21]}  Nxf4+ {[%clk 0:00:18]} 65. Kf3 {[%clk 0:00:22]}  Ng6 {[%clk 0:00:18]} 66. Kg2 {[%clk 0:00:22]}  f4 {[%clk 0:00:18]} 67. Kf3 {[%clk 0:00:23]}  Kc4 {[%clk 0:00:18]} 68. Kf2 {[%clk 0:00:24]}  Kb3 {[%clk 0:00:18]} 0-1


[Site "https://www.chess.com"]

[Event "Titled Tuesday Blitz February 22 Early 2022"]
[White "Loy, Konstantin"]
[Black "Osiecki, Stanislaw"]
[WhiteFideId "14122499"]
[BlackFideId "1102990"]
[WhiteElo "2084"]
[BlackElo "2127"]
[Result "0-1"]
[Round "04"]
[TimeControl "180+1"]
[Date "2022.02.22"]
[WhiteClock "0:00:02"]
[BlackClock "0:00:16"]

1. e4 {[%clk 0:03:00]}  e6 {[%clk 0:02:59]} 2. d3 {[%clk 0:03:00]}  d5 {[%clk 0:02:59]} 3. Nd2 {[%clk 0:03:00]}  c5 {[%clk 0:02:59]} 4. Ngf3 {[%clk 0:03:00]}  Nc6 {[%clk 0:03:00]} 5. g3 {[%clk 0:03:00]}  Bd6 {[%clk 0:02:58]} 6. Bg2 {[%clk 0:02:59]}  Nge7 {[%clk 0:02:57]} 7. O-O {[%clk 0:03:00]}  O-O {[%clk 0:02:57]} 8. Re1 {[%clk 0:03:00]}  d4 {[%clk 0:02:54]} 9. a4 {[%clk 0:02:54]}  Bd7 {[%clk 0:02:51]} 10. Nc4 {[%clk 0:02:53]}  Bc7 {[%clk 0:02:51]} 11. e5 {[%clk 0:02:53]}  Nd5 {[%clk 0:02:50]} 12. h4 {[%clk 0:02:50]}  a6 {[%clk 0:02:49]} 13. Bg5 {[%clk 0:02:39]}  Qb8 {[%clk 0:02:48]} 14. a5 {[%clk 0:02:33]}  h6 {[%clk 0:02:44]} 15. Bd2 {[%clk 0:02:30]}  Ncb4 {[%clk 0:02:40]} 16. h5 {[%clk 0:02:12]}  Qd8 {[%clk 0:02:35]} 17. g4 {[%clk 0:02:07]}  Bb5 {[%clk 0:02:25]} 18. g5 {[%clk 0:01:56]}  Kh7 {[%clk 0:02:24]} 19. Qc1 {[%clk 0:01:15]}  hxg5 {[%clk 0:02:09]} 20. Bxg5 {[%clk 0:01:11]}  f6 {[%clk 0:01:57]} 21. Bh4 {[%clk 0:01:01]}  Qe8 {[%clk 0:01:47]} 22. h6 {[%clk 0:00:39]}  gxh6 {[%clk 0:00:58]} 23. exf6 {[%clk 0:00:34]}  Bxc4 {[%clk 0:00:50]} 24. dxc4 {[%clk 0:00:34]}  Nf4 {[%clk 0:00:49]} 25. Bg3 {[%clk 0:00:30]}  Nxg2 {[%clk 0:00:45]} 26. Kxg2 {[%clk 0:00:30]}  Bxg3 {[%clk 0:00:45]} 27. fxg3 {[%clk 0:00:30]}  Rxf6 {[%clk 0:00:44]} 28. Qd2 {[%clk 0:00:21]}  Qg6 {[%clk 0:00:43]} 29. Nh4 {[%clk 0:00:14]}  Qxc2 {[%clk 0:00:41]} 30. Re2 {[%clk 0:00:11]}  d3 {[%clk 0:00:37]} 31. Qxc2 {[%clk 0:00:09]}  Nxc2 {[%clk 0:00:36]} 32. Ree1 {[%clk 0:00:06]}  Nxa1 {[%clk 0:00:35]} 33. Rxa1 {[%clk 0:00:06]}  Rd8 {[%clk 0:00:28]} 34. Rd1 {[%clk 0:00:06]}  e5 {[%clk 0:00:26]} 35. Nf3 {[%clk 0:00:05]}  e4 {[%clk 0:00:25]} 36. Ne1 {[%clk 0:00:04]}  Rfd6 {[%clk 0:00:22]} 37. Kf2 {[%clk 0:00:03]}  Rd4 {[%clk 0:00:21]} 38. b3 {[%clk 0:00:03]}  d2 {[%clk 0:00:20]} 39. Nc2 {[%clk 0:00:03]}  Rd3 {[%clk 0:00:19]} 40. Ke2 {[%clk 0:00:03]}  Rxg3 {[%clk 0:00:17]} 41. Ne3 {[%clk 0:00:02]}  Rh3 {[%clk 0:00:16]} 0-1


[Site "https://www.chess.com"]